bitfinex-derivatives/quotes_ETHF0:USTF0_20240928
["timestamp","ask_amount","ask_price","bid_price","bid_amount"]
[1727546979427,0.3795,2682.3,2682.1,1.71273]
[1727546980229,0.3795,2682.3,2682.1,0.37273]
[1727546980428,0.37273,2682.2,2682.0,1.71275]
[1727546980626,0.3999,2682.1,2681.9,0.37276]
[1727546980821,0.3808,2682.0,2681.9,0.37276]
[1727546982032,0.3808,2682.0,2681.4,3.6033]
[1727546982236,0.74218,2681.9,2681.7,0.37279]
[1727546982434,3.42116022,2681.8,2681.7,0.37279]
[1727546983639,3.42116022,2681.8,2681.7,1.71279]
[1727546984025,3.42116022,2681.8,2681.7,1.34]
[1727546984026,3.79395022,2681.8,2681.7,1.34]
[1727546984338,3.79395022,2681.8,2681.7,1.7128]
[1727546984526,3.79395022,2681.8,2681.6,1.71281]
[1727546984727,0.3728,2681.7,2681.5,0.37282]
[1727546985040,3.79386022,2681.6,2681.5,0.37282]
[1727546985338,3.79386022,2681.6,2681.4,1.71283]
[1727546985339,4.16667022,2681.6,2681.4,1.71283]
[1727546985539,0.7595,2681.5,2681.4,1.71283]
[1727546987233,4.18066022,2681.5,2681.4,1.71283]
[1727546987834,0.7595,2681.5,2681.4,1.71283]
[1727546988338,4.18066022,2681.5,2681.4,1.71283]
[1727546988942,0.7595,2681.5,2681.4,1.71283]
[1727546991942,1.13233,2681.5,2681.4,1.71283]
[1727546992143,0.7595,2681.5,2681.4,1.71283]
[1727546992738,0.7595,2681.5,2681.4,0.37283]
[1727546992940,0.7595,2681.5,2681.4,1.71283]
[1727546994547,1.13233,2681.5,2681.4,1.71283]
[1727546994845,0.7595,2681.5,2681.4,1.71283]
[1727546998148,1.13233,2681.5,2681.4,1.71283]
[1727546998446,1.13233,2681.5,2681.4,0.37283]
[1727546998847,0.7595,2681.5,2681.4,0.37283]
[1727547000849,0.7595,2681.5,2681.4,1.71283]
[1727547005050,4.18066022,2681.5,2681.4,0.37284]
[1727547005250,0.7595,2681.5,2681.4,0.37284]
[1727547005560,1.13233,2681.5,2681.4,0.37284]
[1727547006066,0.7595,2681.5,2681.4,0.37284]
[1727547006447,1.13233,2681.5,2681.4,0.37284]
[1727547006651,0.7595,2681.5,2681.4,0.37284]
[1727547012054,1.13233,2681.5,2681.4,0.37284]
[1727547012362,4.55349022,2681.5,2681.4,0.37284]
[1727547012662,0.7595,2681.5,2681.4,0.37284]
[1727547014054,0.37281,2681.7,2681.6,0.37281]
[1727547014254,0.4026,2681.8,2681.7,0.3728]
[1727547015962,0.77539,2681.8,2681.7,0.3728]
[1727547017259,0.4026,2681.8,2681.3,3.2078]
[1727547017453,0.37282,2681.6,2681.5,0.37283]
[1727547017654,0.37282,2681.6,2681.4,1.71283]
[1727547017855,0.3869,2681.5,2681.4,1.71283]
[1727547019662,3.80806022,2681.5,2681.4,1.71283]
[1727547020457,4.18089022,2681.5,2681.4,1.71283]
[1727547020651,4.55439022,2681.5,2681.4,1.71283]
[1727547021057,4.18156022,2681.5,2681.4,1.71283]
[1727547023455,0.7604,2681.5,2681.4,1.71283]
[1727547024171,1.13323,2681.5,2681.4,1.71283]
[1727547024357,0.7604,2681.5,2681.4,1.71283]
[1727547025568,4.66521403,2681.5,2681.4,1.71283]
[1727547027360,0.7604,2681.5,2681.4,1.71283]
[1727547028858,6.76209,2681.5,2681.1,3.2078]
[1727547029070,0.76694,2681.4,2681.3,0.37286]
[1727547029572,0.76694,2681.4,2681.2,0.37286]
[1727547030272,0.76694,2681.4,2681.1,4.92067]
[1727547030273,0.37287,2681.3,2681.1,4.92067]
[1727547030468,0.37287,2681.3,2681.2,0.37287]
[1727547031268,0.37287,2681.2,2681.1,4.92068]
[1727547031474,0.3941,2681.4,2681.1,4.92068]
[1727547031670,0.37286,2681.3,2681.1,4.92068]
[1727547032275,0.37287,2681.2,2681.1,4.92068]
[1727547032573,0.37287,2681.2,2681.1,3.2078]
[1727547034767,0.37287,2681.2,2681.1,3.58068]
[1727547034981,0.37287,2681.2,2681.1,0.37288]
[1727547035173,0.37286,2681.3,2681.1,0.37288]
[1727547035375,0.37287,2681.2,2681.1,0.37288]
[1727547035680,0.37287,2681.2,2681.0,1.71289]
[1727547035870,0.3731,2681.1,2681.0,1.71289]
[1727547036273,0.753,2681.1,2681.0,1.71289]
[1727547037875,0.753,2681.1,2681.0,0.37289]
[1727547060386,2.46588,2681.1,2680.9,0.7475]
[1727547060588,0.3743,2681.0,2680.9,0.7475]
[1727547061392,0.3743,2681.0,2680.9,0.3729]
[1727547061393,0.7472,2681.0,2680.9,0.3729]
[1727547061596,4.17198815,2681.0,2680.9,0.3729]
[1727547062183,3.79908815,2681.0,2680.9,0.3729]
[1727547062786,4.17198815,2681.0,2680.8,0.37292]
[1727547063197,4.17198815,2681.0,2680.9,0.37291]
[1727547064100,4.17198815,2681.0,2680.8,0.37292]
[1727547064693,0.37291,2680.9,2680.7,3.58073]
[1727547064890,0.37292,2680.8,2680.7,3.58073]
[1727547065095,0.77932,2680.8,2680.7,3.58073]
[1727547065797,0.4064,2680.8,2680.7,3.58073]
[1727547066603,0.4064,2680.8,2680.7,0.37293]
[1727547067795,1.7464,2680.8,2680.7,0.37293]
[1727547067995,2.11932,2680.8,2680.7,0.37293]
[1727547068194,2.11932,2680.8,2680.6,0.37295]
[1727547068591,1.34,2680.7,2680.5,0.3862]
[1727547068895,0.4076,2680.6,2680.3,0.77919]
[1727547069099,0.4076,2680.6,2680.2,3.2078]
[1727547069100,0.37298,2680.4,2680.2,3.9781]
[1727547069305,0.75108,2680.5,2680.3,0.37299]
[1727547070208,1.7181,2680.5,2680.2,3.9781]
[1727547070697,2.09108,2680.5,2680.2,3.9781]
[1727547073703,2.09108,2680.5,2680.3,0.37299]
[1727547076402,0.37298,2680.4,2680.2,3.9781]
[1727547076593,2.09108,2680.5,2680.2,3.9781]
[1727547077907,2.09108,2680.5,2680.2,3.6051]
[1727547078310,2.09108,2680.5,2680.3,0.37299]
[1727547083110,2.09108,2680.5,2680.2,3.6051]
[1727547083111,0.37298,2680.4,2680.2,3.9781]
[1727547083411,2.09107,2680.5,2680.3,0.37299]
[1727547084507,2.09107,2680.5,2680.2,3.6051]
[1727547084508,0.37299,2680.4,2680.2,3.9781]
[1727547085813,0.37299,2680.4,2680.2,3.6051]
[1727547086008,0.37299,2680.3,2680.2,3.2078]
[1727547086215,0.75929,2680.3,2680.2,3.2078]
[1727547086419,0.3863,2680.3,2680.2,3.2078]
[1727547086706,0.3863,2680.3,2680.2,3.58081]
[1727547087412,0.3863,2680.3,2680.2,0.37301]
[1727547088306,0.7593,2680.3,2680.1,7.89504885]
[1727547088507,0.4019,2680.2,2680.1,7.89504885]
[1727547088909,2.1297,2680.2,2680.1,7.89504885]
[1727547089113,0.7897,2680.2,2680.1,7.89504885]
[1727547092112,0.7897,2680.2,2680.1,7.52203885]
[1727547092319,2.50271,2680.2,2680.1,3.2078]
[1727547094516,2.50271,2680.2,2680.0,0.37303]
[1727547094715,2.50271,2680.2,2680.0,3.58083]
[1727547096223,2.50271,2680.2,2680.0,0.37303]
[1727547096622,2.50271,2680.2,2680.0,3.2078]
[1727547097224,0.37302,2680.1,2680.0,3.2078]
[1727547101424,0.37304,2680.0,2679.9,3.5818]
[1727547101622,1.71304,2680.0,2679.9,3.5818]
[1727547101823,1.71304,2680.0,2679.9,0.374]
[1727547102326,1.34,2680.0,2679.9,0.374]
[1727547102926,1.34,2680.0,2679.9,0.74705]
[1727547103327,1.34,2680.0,2679.9,0.374]
[1727547103926,1.34,2680.0,2679.7,0.37307]
[1727547104121,0.391,2679.9,2679.7,0.37307]
[1727547104436,2.10406,2679.9,2679.7,0.37307]
[1727547104727,0.3684,2679.8,2679.7,0.37308]
[1727547105125,0.3684,2679.8,2679.6,0.7557]
[1727547105126,0.3684,2679.8,2679.6,1.12878]
[1727547106021,0.3684,2679.8,2679.7,0.37308]
[1727547110132,0.3684,2679.8,2679.6,1.12879]
[1727547110329,1.34,2679.7,2679.6,1.12879]
[1727547114137,1.71308,2679.7,2679.6,0.3826]
[1727547114331,1.34,2679.7,2679.6,0.75569]
[1727547115439,1.34,2679.7,2679.6,0.3826]
[1727547117332,1.71308,2679.7,2679.6,0.3826]
[1727547118029,1.34,2679.7,2679.6,0.75569]
[1727547119131,1.71308,2679.7,2679.6,0.3826]
[1727547119333,1.34,2679.7,2679.6,0.3826]
[1727547120532,1.34,2679.7,2679.6,0.37309]
[1727547121328,2.48866,2679.9,2679.7,0.37308]
[1727547121536,2.48866,2679.9,2679.8,0.3682]
[1727547125240,1.731,2679.9,2679.8,0.74126]
[1727547126336,2.10405,2679.9,2679.8,0.74126]
[1727547127148,2.10405,2679.9,2679.8,0.3682]
[1727547127937,2.10405,2679.9,2679.8,0.74126]
[1727547128240,1.731,2679.9,2679.8,0.74126]
[1727547129044,2.10405,2679.9,2679.8,0.74126]
[1727547129246,2.10405,2679.9,2679.8,0.3682]
[1727547130732,1.34,2679.9,2679.8,0.3682]
[1727547130939,0.3896,2680.2,2680.1,0.37302]
[1727547131244,0.7738,2680.4,2680.2,0.373]
[1727547131544,0.7738,2680.4,2680.2,0.7851]
[1727547131842,1.34,2680.3,2680.2,0.7851]
[1727547132344,4.139,2680.9,2680.2,5.8563]
[1727547132542,2.09715,2680.7,2680.2,2.1251]
[1727547132736,0.3842,2680.7,2680.4,0.37297]
[1727547133042,1.34,2680.6,2680.4,0.37297]
[1727547137547,1.34,2680.6,2680.2,2.1251]
[1727547137749,0.3842,2680.7,2680.6,0.37295]
[1727547141147,0.3874,2680.8,2680.7,0.37294]
[1727547141352,0.37291,2680.9,2680.8,0.37292]
[1727547141548,0.37291,2680.9,2680.7,0.37293]
[1727547141951,0.37292,2680.9,2680.7,0.37294]
[1727547142554,0.37292,2680.9,2680.8,0.37292]
[1727547143554,1.16671,2681.0,2680.8,0.37292]
[1727547144651,0.37291,2680.9,2680.8,0.37292]
[1727547146151,1.71291,2680.9,2680.8,0.37292]
[1727547146453,1.34,2680.9,2680.8,0.37292]
[1727547147052,0.3915,2681.0,2680.9,0.37291]
[1727547147558,0.3915,2681.0,2680.9,0.74481]
[1727547158164,0.3915,2681.0,2680.9,0.37291]
[1727547160770,0.37286,2681.3,2681.1,0.37287]
[1727547160965,0.3725,2681.2,2681.1,0.37287]
[1727547162064,0.7434,2681.2,2681.1,0.37287]
[1727547162372,1.11627,2681.2,2681.1,0.37287]
[1727547164667,0.7434,2681.2,2681.1,0.37287]
[1727547166872,1.11627,2681.2,2681.1,0.37287]
[1727547167068,1.11627,2681.2,2680.8,4.5478]
[1727547167372,1.11627,2681.2,2681.1,0.37288]
[1727547168169,0.7434,2681.2,2681.1,0.37288]
[1727547179390,0.37288,2681.1,2681.0,0.37289]
[1727547179582,0.7434,2681.2,2681.1,0.37288]
[1727547180389,1.11627,2681.2,2681.1,0.37288]
[1727547180999,0.7434,2681.2,2681.1,0.37288]
[1727547183489,1.11627,2681.2,2681.1,0.37288]
[1727547183684,0.7434,2681.2,2680.7,1.32644]
[1727547183892,1.11628,2681.2,2681.0,0.37288]
[1727547184097,1.11628,2681.2,2681.1,0.37288]
[1727547184302,0.7434,2681.2,2681.1,0.37288]
[1727547184600,1.11628,2681.2,2681.1,0.37288]
[1727547185990,1.11628,2681.2,2680.8,0.97049891]
[1727547185991,0.37288,2681.1,2681.0,0.37288]
[1727547186191,1.11628,2681.2,2681.1,0.37288]
[1727547187294,1.11627,2681.2,2681.1,0.37288]
[1727547187493,0.7434,2681.2,2681.1,0.37288]
[1727547187998,1.11627,2681.2,2681.1,0.37288]
[1727547190402,0.7434,2681.2,2681.1,0.37288]
[1727547190795,1.11627,2681.2,2681.1,0.37288]
[1727547191100,0.7434,2681.2,2681.1,0.37288]
[1727547193098,1.11627,2681.2,2681.1,0.37288]
[1727547193298,0.7434,2681.2,2681.1,0.37288]
[1727547194793,0.37282,2681.6,2681.4,0.37284]
[1727547195004,0.37282,2681.6,2681.1,3.2078]
[1727547195005,0.76862,2681.6,2681.1,3.2078]
[1727547195296,0.76862,2681.6,2681.4,0.37283]
[1727547195501,0.3958,2681.6,2681.1,4.17829891]
[1727547195698,0.3958,2681.6,2681.4,0.37284]
[1727547195899,0.37283,2681.5,2681.3,0.37285]
[1727547196304,0.3958,2681.6,2681.2,0.37286]
[1727547196504,0.37284,2681.5,2681.3,0.37285]
[1727547196804,0.37283,2681.5,2681.3,0.37285]
[1727547197502,0.3958,2681.6,2681.4,0.37284]
[1727547197503,0.76862,2681.6,2681.4,0.37284]
[1727547197805,0.3958,2681.6,2681.5,0.37283]
[1727547198503,0.4042,2681.7,2681.6,0.37281]
[1727547199098,3.2078,2681.8,2681.7,0.3728]
[1727547199397,4.2964436,2682.1,2682.0,0.37276]
[1727547199599,4.49158052,2682.2,2682.0,1.34]
[1727547199600,7.54041104,2682.2,2682.0,1.34]
[1727547199798,7.54041104,2682.2,2682.1,0.4078]
[1727547199799,4.11748052,2682.2,2682.1,0.4078]
[1727547200106,4.11748052,2682.2,2682.1,1.18864]
[1727547204002,0.75511,2682.4,2682.2,0.37273]
[1727547204314,0.3824,2682.4,2682.3,0.37272]
[1727547205011,0.3824,2682.4,2682.2,0.37273]
[1727547205012,0.75511,2682.4,2682.2,0.37273]
[1727547205615,0.3824,2682.4,2682.3,0.37272]
[1727547205911,0.75511,2682.4,2682.2,0.37273]
[1727547206614,0.75511,2682.4,2682.1,0.8159]
[1727547206615,0.3824,2682.4,2682.3,0.37272]
[1727547207111,0.75511,2682.4,2682.2,0.37273]
[1727547208707,0.75511,2682.4,2682.3,0.37272]
[1727547209113,0.75511,2682.4,2682.2,0.37272]
[1727547210010,0.3824,2682.4,2682.2,0.37272]
[1727547210215,0.75511,2682.4,2682.2,0.37272]
[1727547211020,0.3824,2682.4,2682.2,0.37272]
[1727547211311,0.37272,2682.3,2682.2,0.37272]
[1727547211512,0.3824,2682.4,2682.1,0.4078]
[1727547211513,0.37273,2682.2,2682.1,0.4078]
[1727547211720,1.71273,2682.2,2682.0,0.37275]
[1727547211916,0.3877,2682.1,2682.0,0.37275]
[1727547212510,0.76044,2682.1,2682.0,0.37275]
[1727547212807,0.3877,2682.1,2682.0,0.37275]
[1727547213821,0.76044,2682.1,2682.0,0.37275]
[1727547214623,0.76045,2682.1,2682.0,0.37276]
[1727547215923,0.3877,2682.1,2682.0,0.37276]
[1727547216117,0.76045,2682.1,2682.0,0.37276]
[1727547217920,1.13415,2682.1,2682.0,0.37276]
[1727547219925,0.7614,2682.1,2682.0,0.37276]
[1727547221020,4.13951,2682.6,2682.0,1.34]
[1727547221224,4.13951,2682.6,2682.2,0.37272]
[1727547221225,0.37272,2682.3,2682.2,0.37272]
[1727547221425,0.37271,2682.4,2682.3,0.37272]
[1727547221626,0.37272,2682.3,2682.2,0.37272]
[1727547221820,0.7534,2682.5,2682.0,1.34]
[1727547222014,0.37271,2682.4,2682.0,1.34]
[1727547222224,0.37271,2682.4,2682.3,0.37272]
[1727547222426,0.3718,2682.4,2682.0,1.34]
[1727547222819,0.74451,2682.4,2682.3,0.37272]
[1727547223718,0.3718,2682.4,2682.3,0.37272]
[1727547224228,3.2078,2682.6,2682.2,4.5478]
[1727547224426,0.394,2682.6,2682.5,0.37269]
[1727547225021,0.394,2682.6,2682.4,0.3727]
[1727547225022,0.37269,2682.5,2682.4,0.3727]
[1727547225522,0.77209,2682.5,2682.4,0.3727]
[1727547225716,0.77209,2682.5,2682.3,0.3937]
[1727547225717,0.3727,2682.4,2682.3,0.37271]
[1727547225924,0.7425,2682.4,2682.3,0.37271]
[1727547226123,0.7425,2682.4,2682.2,0.37272]
[1727547226331,0.37272,2682.3,2682.2,0.37272]
[1727547226531,0.74251,2682.4,2682.2,0.37272]
[1727547227331,0.74251,2682.4,2681.8,3.2078]
[1727547227332,0.37272,2682.3,2681.8,3.2078]
[1727547227632,0.7813,2682.2,2682.1,0.37273]
[1727547230127,1.15403,2682.2,2682.1,0.37273]
[1727547230319,2.49403,2682.2,2682.0,0.37275]
[1727547230526,2.1213,2682.2,2682.0,0.37275]
[1727547231024,0.7813,2682.2,2682.0,0.37275]
[1727547232833,0.7813,2682.2,2681.8,5.3299]
[1727547233333,0.7813,2682.2,2682.1,1.34]
[1727547233534,0.7813,2682.2,2682.1,1.71274]
[1727547233733,0.7813,2682.2,2682.1,0.37274]
[1727547237233,0.7813,2682.2,2682.0,1.34]
[1727547238540,0.7813,2682.2,2682.1,0.37274]
[1727547238740,0.7813,2682.2,2682.0,1.71275]
[1727547239039,0.7813,2682.2,2682.0,1.34]
[1727547239239,0.7813,2682.2,2682.1,0.37274]
[1727547244146,4.20423052,2682.2,2682.1,0.37274]
[1727547244330,0.7813,2682.2,2682.1,0.37274]
[1727547244529,4.20423052,2682.2,2682.1,0.37274]
[1727547244738,0.7813,2682.2,2682.1,0.37274]
[1727547248739,0.3727,2682.5,2682.3,0.37271]
[1727547248930,0.3727,2682.4,2682.3,0.37271]
[1727547249539,0.3905,2682.5,2682.4,0.3727]
[1727547251241,0.4018,2682.6,2682.5,0.37269]
[1727547252946,4.81115687,2682.6,2682.5,0.37269]
[1727547253549,4.81115687,2682.6,2682.3,1.34]
[1727547253750,3.91172337,2682.5,2682.3,1.34]
[1727547253950,3.91172337,2682.5,2682.4,0.3727]
[1727547254146,4.81115687,2682.6,2682.5,0.37269]
[1727547255961,0.4018,2682.6,2682.5,0.37269]
[1727547256852,0.77447,2682.6,2682.5,0.37269]
[1727547257459,4.68512113,2682.6,2682.5,0.37269]
[1727547258062,0.77447,2682.6,2682.5,0.37269]
[1727547258460,4.684912,2682.6,2682.5,0.37269]
[1727547259263,0.77447,2682.6,2682.5,0.37269]
[1727547259464,4.68468703,2682.6,2682.5,0.37269]
[1727547259868,0.77447,2682.6,2682.5,0.37269]
[1727547260564,0.77447,2682.6,2682.4,0.37269]
[1727547260768,0.77447,2682.6,2682.5,0.37269]
[1727547262261,0.37267,2682.7,2682.6,0.37267]
[1727547262463,0.37267,2682.7,2682.5,1.71268]
[1727547262464,0.37267,2682.6,2682.5,1.71268]
[1727547263166,0.75406,2682.7,2682.6,0.37267]
[1727547263472,0.3814,2682.7,2682.5,1.34]
[1727547263869,0.37267,2682.6,2682.5,1.71268]
[1727547266960,0.75407,2682.7,2682.5,1.71268]
[1727547267175,0.37267,2682.6,2682.5,1.34]
[1727547267472,0.75406,2682.7,2682.6,0.37267]
[1727547267873,4.66427703,2682.7,2682.6,0.37267]
[1727547268871,4.66427703,2682.7,2682.5,1.71268]
[1727547268872,0.37267,2682.6,2682.5,1.71268]
[1727547269778,4.66428703,2682.7,2682.5,1.71268]
[1727547269973,4.66428703,2682.7,2682.6,0.37267]
[1727547270678,4.66428703,2682.7,2682.6,0.75547]
[1727547273177,0.37267,2682.6,2682.5,1.71268]
[1727547273381,0.37269,2682.5,2682.4,4.92049]
[1727547273577,0.37268,2682.6,2682.5,0.37269]
[1727547274077,4.29161703,2682.7,2682.6,0.37267]
[1727547274876,0.3814,2682.7,2682.5,1.34]
[1727547275275,0.37267,2682.6,2682.5,1.71268]
[1727547275470,0.75407,2682.7,2682.6,0.37267]
[1727547278978,0.37267,2682.6,2682.5,1.71268]
[1727547279176,0.37269,2682.5,2682.4,0.3727]
[1727547279370,0.37269,2682.5,2682.2,0.7875]
[1727547279371,0.37272,2682.3,2682.2,0.37272]
[1727547280384,1.15251,2682.4,2682.3,0.37272]
[1727547281470,0.37268,2682.6,2682.2,1.34]
[1727547281674,0.37269,2682.5,2682.3,1.34]
[1727547281875,0.37269,2682.5,2682.4,0.3727]
[1727547282777,0.76149,2682.5,2682.4,0.3727]
[1727547282970,0.3888,2682.5,2682.4,0.3727]
[1727547286679,0.3888,2682.5,2682.4,1.7127]
[1727547290578,4.2995318,2682.5,2682.4,1.7127]
[1727547290981,0.3888,2682.5,2682.4,1.7127]
[1727547291180,4.2995498,2682.5,2682.4,1.7127]
[1727547291588,0.3888,2682.5,2682.4,1.7127]
[1727547292789,4.30000623,2682.5,2682.4,1.7127]
[1727547293087,0.3888,2682.5,2682.4,1.7127]
[1727547300293,0.3888,2682.5,2682.3,1.34]
[1727547300593,1.32054,2682.5,2681.9,5.52331538]
[1727547300797,0.37272,2682.3,2682.2,0.37272]
[1727547301092,0.37271,2682.4,2682.3,0.37271]
[1727547301483,0.37271,2682.4,2682.3,1.71271]
[1727547303791,0.3888,2682.5,2682.3,1.71271]
[1727547303991,0.3727,2682.4,2682.3,1.71271]
[1727547304800,0.3888,2682.5,2682.2,0.37272]
[1727547304801,0.37272,2682.3,2682.2,0.37272]
[1727547304994,0.3882,2682.3,2682.2,0.37272]
[1727547309297,0.37271,2682.4,2682.3,0.37272]
[1727547311800,3.2078,2682.6,2682.3,1.7399]
[1727547312105,0.74625,2682.8,2682.6,0.37267]
[1727547312309,4.78295687,2682.8,2682.7,0.37266]
[1727547312804,0.3736,2682.8,2682.7,0.37266]
[1727547313405,0.74625,2682.8,2682.7,0.37266]
[1727547313605,0.74625,2682.8,2682.6,1.56466]
[1727547313801,3.90962533,2682.7,2682.6,1.56466]
[1727547314006,0.3736,2682.8,2682.7,1.71266]
[1727547314500,3.79448609,2682.8,2682.7,1.71266]
[1727547315297,3.42088609,2683.0,2682.9,0.37263]
[1727547315607,3.42088609,2683.3,2683.2,0.37259]
[1727547315804,0.3745,2683.4,2683.3,1.71258]
[1727547316006,3.41844416,2683.4,2683.3,1.71258]
[1727547316309,3.41844416,2683.7,2683.3,8.2742]
[1727547316609,8.7088822,2683.8,2683.7,0.37252]
[1727547316610,3.80834416,2683.8,2683.7,0.37252]
[1727547316812,3.80834416,2683.8,2683.7,1.71252]
[1727547317403,0.3899,2683.8,2683.7,1.71252]
[1727547317709,0.3899,2683.8,2683.7,0.37252]
[1727547318210,0.7823,2683.8,2683.6,1.71253]
[1727547318416,0.3899,2683.8,2683.7,1.71252]
[1727547318610,0.3745,2683.9,2683.7,1.71252]
[1727547318810,3.41844416,2684.2,2683.8,3.2078]
[1727547319111,0.087,2684.5,2684.4,0.37242]
[1727547319309,0.4063,2684.7,2684.4,1.34]
[1727547319505,0.4063,2684.7,2684.2,0.3743]
[1727547319706,0.4063,2684.7,2684.3,1.71243]
[1727547320106,0.4063,2684.7,2684.3,1.34]
[1727547320301,0.37,2684.8,2684.5,1.34]
[1727547320510,0.37,2684.8,2684.6,0.37239]
[1727547320704,0.37,2684.8,2684.5,1.7124]
[1727547321109,0.37,2684.8,2684.5,1.34]
[1727547321310,0.37,2684.8,2684.4,5.30911]
[1727547321817,0.37,2684.8,2684.5,0.37241]
[1727547322017,0.37,2684.8,2684.4,4.9367]
[1727547322220,0.37,2684.8,2684.4,3.5967]
[1727547322421,0.37,2684.8,2684.4,3.96912]
[1727547322824,0.37,2684.8,2684.4,3.5967]
[1727547323019,0.37,2684.8,2684.4,3.96912]
[1727547323526,0.37,2684.8,2684.4,3.5967]
[1727547323726,0.37,2684.8,2684.4,3.96912]
[1727547325422,0.74238,2684.8,2684.4,3.5967]
[1727547325625,0.37,2684.8,2684.4,3.5967]
[1727547325828,0.74237,2684.8,2684.4,3.5967]
[1727547326331,0.37239,2684.7,2684.4,3.2078]
[1727547326518,0.37,2684.8,2684.5,0.3724]
[1727547326917,0.37,2684.8,2684.6,0.3724]
[1727547327320,0.37,2684.8,2684.4,6.1178]
[1727547327835,3.2078,2684.9,2684.7,0.37238]
[1727547328026,3.2078,2684.9,2684.8,0.37237]
[1727547328325,3.2078,2684.9,2684.7,0.37237]
[1727547329026,3.2078,2684.9,2684.6,0.37239]
[1727547329229,3.2078,2684.9,2684.5,0.3724]
[1727547329524,3.2078,2684.9,2684.4,6.49022]
[1727547329525,0.37237,2684.8,2684.4,6.49022]
[1727547329730,2.91,2684.8,2684.3,0.37243]
[1727547329915,3.5802,2684.6,2684.3,0.37244]
[1727547330115,0.3928,2684.5,2684.3,0.37244]
[1727547330321,0.7748,2684.5,2684.3,0.37244]
[1727547330520,0.7748,2684.5,2684.3,0.37243]
[1727547330724,0.7748,2684.5,2684.4,0.37242]
[1727547331332,0.37236,2684.9,2684.4,6.6348]
[1727547331529,1.13974,2685.0,2684.7,0.37238]
[1727547332240,0.7674,2685.0,2684.7,0.37238]
[1727547332528,0.37231,2685.3,2685.0,0.37234]
[1727547332923,0.37231,2685.3,2685.0,0.77034]
[1727547333130,0.3723,2685.4,2685.1,3.28233]
[1727547333633,0.3723,2685.4,2685.2,0.37231]
[1727547333634,0.37229,2685.4,2685.2,0.37231]
[1727547334123,0.37228,2685.5,2685.2,0.37231]
[1727547334724,0.37228,2685.5,2685.1,6.1178]
[1727547334725,1.13966,2685.6,2685.3,0.37229]
[1727547335121,3.2078,2685.8,2685.3,2.91]
[1727547335322,3.2078,2685.8,2685.1,3.2078]
[1727547335323,3.2078,2685.8,2685.5,2.91]
[1727547335730,3.2078,2685.8,2685.5,3.3029]
[1727547335934,3.2078,2685.8,2685.7,0.37224]
[1727547336426,0.3722,2686.1,2685.8,0.37223]
[1727547336631,0.3722,2686.1,2685.7,4.07524]
[1727547336828,0.37221,2686.0,2685.7,2.91]
[1727547337032,0.93044,2686.3,2685.6,4.0008]
[1727547337424,6.8875,2686.4,2685.8,3.28223]
[1727547337425,0.37219,2686.1,2685.8,3.28223]
[1727547337623,0.37219,2686.1,2685.8,2.91]
[1727547338029,0.3722,2686.1,2685.8,2.91]
[1727547338230,0.37219,2686.1,2685.8,2.91]
[1727547338537,0.3722,2686.0,2685.8,2.91]
[1727547338722,0.37222,2685.9,2685.6,6.9108]
[1727547338928,0.4019,2685.8,2685.6,6.9108]
[1727547339527,0.77413,2685.8,2685.6,2.91]
[1727547339833,1.15644,2685.8,2685.6,2.91]
[1727547340527,1.15644,2685.8,2685.4,0.76519]
[1727547340528,1.15644,2685.8,2685.4,3.3029]
[1727547340832,1.15644,2685.8,2685.4,3.67518]
[1727547341241,0.7842,2685.8,2685.4,2.91]
[1727547341535,0.37227,2685.6,2685.4,2.91]
[1727547341736,3.992,2685.8,2685.2,2.91]
[1727547342036,0.37228,2685.5,2685.2,2.91]
[1727547342332,0.37229,2685.4,2685.2,2.91]
[1727547342532,4.92261,2685.8,2685.2,2.91]
[1727547342533,0.37228,2685.5,2685.2,2.91]
[1727547342729,0.37229,2685.4,2685.2,2.91]
[1727547343833,3.58008,2685.5,2685.2,2.91]
[1727547344130,0.37229,2685.4,2685.2,2.91]
[1727547344927,3.2078,2685.5,2685.2,2.91]
[1727547345144,0.37232,2685.2,2685.0,3.3002]
[1727547345339,0.37233,2685.1,2685.0,2.91]
[1727547345537,0.37235,2685.0,2684.7,6.1178]
[1727547345743,0.7462,2685.1,2684.7,2.91]
[1727547345933,0.7462,2685.1,2684.5,2.3223]
[1727547345934,0.7462,2685.1,2684.5,4.0669]
[1727547346135,1.67705,2685.1,2684.5,4.0669]
[1727547346329,0.93086,2685.0,2684.5,4.0669]
[1727547346531,0.3724,2684.6,2684.4,3.2078]
[1727547346838,0.37241,2684.5,2684.4,3.2078]
[1727547347032,0.3942,2684.5,2684.3,2.91]
[1727547347549,0.76661,2684.5,2684.3,2.91]
[1727547348349,0.3942,2684.5,2684.3,2.91]
[1727547348838,3.3042,2684.5,2683.9,0.349]
[1727547349046,0.37249,2684.0,2683.7,7.026]
[1727547349241,0.37248,2684.1,2683.7,3.28252]
[1727547349439,0.37248,2684.0,2683.7,3.28252]
[1727547349639,0.37248,2684.1,2683.7,3.28252]
[1727547349941,0.37249,2684.0,2683.7,3.28252]
[1727547350141,0.37249,2684.0,2683.7,2.91]
[1727547351236,6.1178,2684.3,2683.7,2.91]
[1727547351442,0.3725,2683.9,2683.7,2.91]
[1727547352045,0.93114,2684.2,2683.5,7.59655342]
[1727547352251,0.37249,2684.0,2683.6,0.37253]